Cogmind - Beta 11.1 @@@ ROGUE MODE // 2022.05.17 @ 21:54:28 Player: Jezoensis Result: Destroyed by B0-J9B(z) with Zionite Laser-S Performance ------------- Evolutions (1) 500 Regions Visited (6) 1200 Robots Destroyed (41) 205 Value Destroyed (913) 913 Prototype IDs (8) 160 Alien Tech Used (0) 0 Bonus (616) 616 TOTAL SCORE: 3594 Bonus ------- High Alert Combat Kills 16 Met Imprinter 300 Was Imprinted 300 Cogmind --------- Core Integrity 0/400 Matter 205/300 Energy 99/100 System Corruption 0% Temperature Cool (9) Movement Core (50) Location -7/Deep Caves Parts ------- > --- POWER (1) -------- (None) > --- PROPULSION (3) --- (None) > --- UTILITY (3) ------ Visual Processing Unit > --- WEAPON (2) ------- Heavy Mace > --- INVENTORY (5) ---- Medium Storage Unit High-capacity Matter Pod (110) Structural Scanner Peak State ------------ > --- POWER ------------ Cooled Ion Engine > --- PROPULSION ------- Light Treads Light Treads Light Treads > --- UTILITY ---------- Large Storage Unit Hacking Drone Bay Phasing AFG > --- WEAPON ----------- Ion Cannon Ion Cannon > --- INVENTORY -------- Cooled Ion Engine Advanced Treads Advanced Treads Advanced Treads Cooling System Medium Storage Unit High-capacity Matter Pod Visual Processing Unit Improved Terrain Scanner Improved Targeting Computer Shield Generator Improved Assault Rifle Improved Assault Rifle Grenade Launcher Katana [Rating: 38] Favorites ----------- Power Heavy Ion Engine Engine Heavy Ion Engine Propulsion Light Treads Treads Light Treads Wheel Wheel Utility Large Storage Unit Device Improved Terrain Scanner Storage Large Storage Unit Processor Terrain Scan Processor Weapon Ion Cannon Energy Gun Medium Laser Energy Cannon Ion Cannon Ballistic Gun Assault Rifle Launcher Grenade Launcher Special Weapon Mining Laser Impact Weapon Heavy Mace Slashing Weapon Katana Build | -11 -10 -10 -9 -9 -7 -7 ------- Run | Scr Mat Min Mat Min Zio Dee Slots Evolved 2 | . . . 2 . . . Power . | . . . . . . . Propulsion 1 | . . . 1 . . . Utility 1 | . . . 1 . . . Weapon . | . . . . . . . Parts Attached 92 | 7 6 2 56 2 7 12 Power 7 | 1 1 1 4 . . . Engine 7 | 1 1 1 4 . . . Core . | . . . . . . . Reactor . | . . . . . . . Propulsion 23 | 2 1 1 16 . . 3 Treads 18 | . . . 15 . . 3 Leg . | . . . . . . . Wheel 5 | 2 1 1 1 . . . Hover . | . . . . . . . Flight . | . . . . . . . Utility 34 | 2 2 . 19 2 7 2 Device 28 | 1 . . 18 2 6 1 Storage 3 | 1 2 . . . . . Processor 3 | . . . 1 . 1 1 Hackware . | . . . . . . . Protection . | . . . . . . . Artifact . | . . . . . . . Weapon 28 | 2 2 . 17 . . 7 Energy Gun 4 | 1 1 . 2 . . . Energy Cannon 12 | . . . 11 . . 1 Ballistic Gun 6 | 1 . . 2 . . 3 Ballistic Cannon . | . . . . . . . Launcher 2 | . . . 1 . . 1 Special Weapon 1 | . 1 . . . . . Impact Weapon 1 | . . . . . . 1 Slashing Weapon 2 | . . . 1 . . 1 Piercing Weapon . | . . . . . . . Special Melee Weapon . | . . . . . . . Unidentified Prototypes 7 | . 1 . 4 . 2 . Parts Lost 14 | . . 1 . . . 13 Power . | . . . . . . . Propulsion 7 | . . 1 . . . 6 Utility 1 | . . . . . . 1 Weapon 6 | . . . . . . 6 Highest Loss Streak 13 | . . 1 . . . 13 To Critical Strikes . | . . . . . . . Average Slot Usage (%) 98 | . 100 99 99 100 100 88 Engine 11 | . 14 14 10 11 11 9 Treads 24 | . . . 29 33 33 29 Wheel 6 | . 28 27 3 . . . Device 14 | . 14 14 12 22 19 8 Storage 11 | . 14 14 11 11 11 9 Processor 5 | . . . 9 . 2 11 Energy Gun 2 | . 14 14 . . . . Energy Cannon 16 | . . . 19 22 22 17 Ballistic Gun 3 | . 14 14 1 . . . Naked Turns . | . . . . . . . Heaviest Build 43 | 13 33 33 43 42 42 42 Greatest Support 66 | 20 26 26 66 60 60 66 Greatest Overweight (x) 1 | . 1 1 1 . . . Average Overweight (x) . | . . 1 . . . . Largest Inventory Capacity 15 | 8 15 15 15 15 15 15 Average Capacity 14 | 7 10 15 15 15 15 13 Most Carried 15 | 8 11 15 15 15 15 15 Average Carried 13 | 4 9 12 14 14 14 12 Final Capacity 15 | 8 15 15 15 15 15 5 Final Carried 15 | 8 11 15 14 14 15 3 Class Distribution -------------------- 76% | Mutant 23% | Scavenger-Mutant Dominant Class ---------------- Mutant | -10/Materials Mutant | -10/Mines Mutant | -9/Materials Scavenger-Mutant | -9/Mines Mutant | -7/Zion Mutant | -7/Deep Caves Resources | -11 -10 -10 -9 -9 -7 -7 ----------- Run | Scr Mat Min Mat Min Zio Dee Matter Collected 1234 | 243 116 72 711 46 35 11 Remotely . | . . . . . . . Salvage Created 1394 | 71 173 102 1008 29 . 11 Parts 103 | 8 15 9 70 1 . . Haulers Intercepted 4 | . 1 . 3 . . . Recyclers Shooed 1 | . . . 1 . . . Parts Field Recycled . | . . . . . . . Retrieved Matter . | . . . . . . . Parts Self-Destructed 8 | . . . . . 8 . Prevented . | . . . . . . . Kills | -11 -10 -10 -9 -9 -7 -7 ------- Run | Scr Mat Min Mat Min Zio Dee Combat Hostiles Destroyed 27 | . 7 2 18 . . . Guns 14 | . 7 2 5 . . . Cannons 11 | . . . 11 . . . Classes Destroyed 9 | 1 3 1 3 . . 1 Builder 2 | . . 1 1 . . . Tunneler 4 | 3 . . . 1 . . Hauler 4 | . 1 . 3 . . . Watcher 4 | . . . 4 . . . Swarmer 10 | . 6 . 4 . . . Grunt 10 | . 1 2 7 . . . Duelist 1 | . . . 1 . . . Sentry 6 | . . . 6 . . . Z-Technician 1 | . . . . . . 1 Best Kill Streak 7 | 3 6 2 7 1 . 1 Combat Bots Only 6 | . 6 2 6 . . . Max Kills in Single Turn 2 | 1 2 1 1 1 . 1 Gunslinging 1 | . 1 . . . . . Exploded . | . . . . . . . Melee . | . . . . . . . Uniques/NPCs Destroyed . | . . . . . . . Combat | -11 -10 -10 -9 -9 -7 -7 -------- Run | Scr Mat Min Mat Min Zio Dee Damage Taken 3136 | . 199 175 508 . . 2254 Core 539 | . 36 75 52 . . 376 Absorbed by Shields 83 | . . . 83 . . . Core Remaining (%) 77 | 100 . 55 . . . . Volleys Fired 97 | 6 16 12 51 2 . 10 Largest 2 | 2 2 2 2 2 . 2 Hottest 120 | 70 100 70 120 120 . 120 Shots Fired 191 | 12 29 24 102 4 . 20 Gun 90 | 12 28 24 22 . . 4 Cannon 100 | . . . 80 4 . 16 Launcher . | . . . . . . . Special 1 | . 1 . . . . . Kinetic 59 | 6 15 12 22 . . 4 Thermal 132 | 6 14 12 80 4 . 16 Explosive . | . . . . . . . Electromagnetic . | . . . . . . . Robot Hit Streak 16 | 7 7 8 16 6 . 9 Robot Miss Streak 4 | 1 4 2 3 . . 2 Penetration Max . | . . . . . . . Secondary Targets 6 | . 4 . 2 . . . Max Gunslinging Chain 1 | . 1 . 1 . . . Shots Hit Robots 123 | 8 16 17 63 3 . 16 Core Hits 52 | 4 11 6 27 . . 4 Critical Kills 3 | . . . 2 1 . . Critical Parts Destroyed . | . . . . . . . Critical Strikes 6 | . 2 1 2 1 . . Burn 3 | . 2 1 . . . . Meltdown 3 | . . . 2 1 . . Melee Attacks 2 | . . . 1 . . 1 Impact . | . . . . . . . Slashing 2 | . . . 1 . . 1 Piercing . | . . . . . . . Sneak Attacks 1 | . . . . . . 1 Combat Hostiles . | . . . . . . . Follow-up Attacks . | . . . . . . . Damage Inflicted 2452 | 95 206 223 1447 69 . 412 Guns 825 | 95 206 223 238 . . 63 Cannons 1523 | . . . 1201 69 . 253 Explosions . | . . . . . . . Melee 96 | . . . . . . 96 Ramming 8 | . . . 8 . . . Kinetic 547 | 46 91 109 238 . . 63 Thermal 1801 | 49 115 114 1201 69 . 253 Explosive . | . . . . . . . Electromagnetic . | . . . . . . . Impact . | . . . . . . . Slashing 96 | . . . . . . 96 Piercing . | . . . . . . . Highest Corruption . | . . . . . . . Average Corruption . | . . . . . . . Corruption Purged . | . . . . . . . Corruption Blocked . | . . . . . . . Overload Shots . | . . . . . . . Overflow Damage 92 | . . . 16 7 . 69 Projectiles 26 | . . . 16 7 . 3 Explosions . | . . . . . . . Melee 66 | . . . . . . 66 Knockbacks . | . . . . . . . Impact . | . . . . . . . Kinetic . | . . . . . . . Secondary . | . . . . . . . Self-Inflicted Damage . | . . . . . . . Shots . | . . . . . . . Rammed 2 | . . . 2 . . . Targets Rammed 2 | . . . 2 . . . Kicked . | . . . . . . . Crushed . | . . . . . . . Highest Temperature 216 | 45 48 216 126 90 . 26 Average Temperature 41 | 20 16 91 38 49 . 9 Received Heat Transfer 909 | . 12 120 147 . . 630 Siege Activations . | . . . . . . . Robots Corrupted . | . . . . . . . Combat Hostiles . | . . . . . . . Parts Fried . | . . . . . . . Impact Corruptions . | . . . . . . . Robots Melted 3 | . . . 2 1 . . Combat Hostiles 2 | . . . 2 . . . Parts Melted 5 | . 1 1 3 . . . Heat Transferred 3161 | 148 481 407 1887 111 . 127 Parts Sabotaged . | . . . . . . . Parts Stolen . | . . . . . . . Parts Stripped . | . . . . . . . Power Chain Reactions . | . . . . . . . Missiles Intercepted . | . . . . . . . Alert | -11 -10 -10 -9 -9 -7 -7 ------- Run | Scr Mat Min Mat Min Zio Dee Peak Influence 473 | 15 297 175 473 189 . . Initial 184 | . 9 115 68 184 . . Average 170 | 5 102 169 205 188 . . Maximum Alert Level 2 | . 1 . 2 . . . Low Security (%) 69 | 100 82 100 54 100 . . Level 1 25 | . 17 . 36 . . . Level 2 5 | . . . 8 . . . Level 3 . | . . . . . . . Level 4 . | . . . . . . . Level 5 . | . . . . . . . High Security . | . . . . . . . Max Security . | . . . . . . . Squads Dispatched 2 | . 1 . 1 . . . Investigation 2 | . 1 . 1 . . . Extermination . | . . . . . . . Reinforcement . | . . . . . . . Assault . | . . . . . . . Garrison . | . . . . . . . Intercept . | . . . . . . . Searches Triggered . | . . . . . . . Construction Impeded . | . . . . . . . Haulers Reinforced . | . . . . . . . Active Scanning Responses . | . . . . . . . Cargo Convoy Interrupts . | . . . . . . . Stealth | -11 -10 -10 -9 -9 -7 -7 --------- Run | Scr Mat Min Mat Min Zio Dee Distress Signals 3 | . . . 3 . . . Communications Jammed . | . . . . . . . Distress Signals . | . . . . . . . Times Spotted 51 | . 15 2 25 . . 9 Peak Tracking Total 11 | . 4 2 4 . . 11 Tactical Retreats 1 | . . . 1 . . . Traps | -11 -10 -10 -9 -9 -7 -7 ------- Run | Scr Mat Min Mat Min Zio Dee Traps Triggered 3 | . 1 . 2 . . . Indirectly . | . . . . . . . Trap Hack Attempts . | . . . . . . . Triggered . | . . . . . . . Disarmed . | . . . . . . . Reprogrammed . | . . . . . . . Reused . | . . . . . . . Traps Extracted . | . . . . . . . Installed . | . . . . . . . Triggered . | . . . . . . . Machines | -11 -10 -10 -9 -9 -7 -7 ---------- Run | Scr Mat Min Mat Min Zio Dee Machines Disabled 2 | . . . 2 . . . Max in Single Turn 1 | . . . 1 . . . Machines Sabotaged . | . . . . . . . Garrisons Compromised . | . . . . . . . Overloaded Fab Kills . | . . . . . . . Hacking | -11 -10 -10 -9 -9 -7 -7 --------- Run | Scr Mat Min Mat Min Zio Dee Machines Accessed 17 | . 8 . 9 . . . Terminals 12 | . 6 . 6 . . . Fabricators . | . . . . . . . Repair Stations 2 | . 1 . 1 . . . Recycling Units 3 | . 1 . 2 . . . Scanalyzers . | . . . . . . . Garrison Access . | . . . . . . . Total Hacks 45 | . 22 . 23 . . . Successful 27 | . 13 . 14 . . . Failed 17 | . 8 . 9 . . . Catastrophic 1 | . 1 . . . . . Database Lockouts 1 | . 1 . . . . . Manual 39 | . 13 . 21 . 5 . Terminals 39 | . 19 . 20 . . . Fabricators . | . . . . . . . Repair Stations 2 | . 1 . 1 . . . Recycling Units 4 | . 2 . 2 . . . Scanalyzers . | . . . . . . . Garrison Access . | . . . . . . . Terminal Hacks 14 | . 6 . 8 . . . Part Schematic 1 | . . . 1 . . . Robot Analysis 5 | . 1 . 4 . . . Prototype ID Bank 1 | . 1 . . . . . Terminal Index 2 | . 1 . 1 . . . Unreport Threat 1 | . 1 . . . . . Locate Traps 3 | . 2 . 1 . . . Zone Layout 1 | . . . 1 . . . Fabricator Hacks . | . . . . . . . Repair Station Hacks . | . . . . . . . Recycling Unit Hacks . | . . . . . . . Scanalyzer . | . . . . . . . Garrison Access Hacks . | . . . . . . . Unauthorized Hacks 13 | . 7 . 6 . . . Terminals 7 | . 4 . 3 . . . Track 1 | . 1 . . . . . Botnet 4 | . 2 . 2 . . . Operators 2 | . 1 . 1 . . . Fabricators . | . . . . . . . Repair Stations 2 | . 1 . 1 . . . Mechanics 2 | . 1 . 1 . . . Recycling Units 4 | . 2 . 2 . . . Reject 1 | . 1 . . . . . Recyclers 2 | . 1 . 1 . . . Tunnel 1 | . . . 1 . . . Scanalyzers . | . . . . . . . Garrison Access . | . . . . . . . Data Cores Recovered . | . . . . . . . Used . | . . . . . . . Hacking Detections 14 | . 6 . 8 . . . Full Trace Events 1 | . 1 . . . . . Feedback Events . | . . . . . . . Feedback Blocked . | . . . . . . . Robot Schematics Acquired . | . . . . . . . Robots Built . | . . . . . . . Authchips . | . . . . . . . Time . | . . . . . . . Total Robot Build Rating . | . . . . . . . Part Schematics Acquired 1 | . . . 1 . . . Parts Built . | . . . . . . . Authchips . | . . . . . . . Time . | . . . . . . . Total Part Build Rating . | . . . . . . . Parts Repaired . | . . . . . . . Time . | . . . . . . . Parts Recycled . | . . . . . . . Recycled Matter . | . . . . . . . Retrieved Matter . | . . . . . . . Retrieved Components . | . . . . . . . Parts Scanalyzed . | . . . . . . . Part Schematics Acquired . | . . . . . . . Parts Damaged . | . . . . . . . Bothacking | -11 -10 -10 -9 -9 -7 -7 ------------ Run | Scr Mat Min Mat Min Zio Dee Used RIF Installer . | . . . . . . . Robots Hacked . | . . . . . . . Non-combat . | . . . . . . . Combat . | . . . . . . . Robot Hacks Applied . | . . . . . . . Relay Couplers Released . | . . . . . . . Fabnet Peak Effective % . | . . . . . . . Robots Rewired . | . . . . . . . Allies Hacked . | . . . . . . . Hacks Repelled . | . . . . . . . Allies | -11 -10 -10 -9 -9 -7 -7 -------- Run | Scr Mat Min Mat Min Zio Dee Total Allies 4 | . . . . . 4 . Largest Group 4 | . . . . . 4 1 Highest-Rated Group 155 | . . . . . 155 40 Highest-Rated Ally 40 | . . . . . 40 40 Total Orders 1 | . . . . . 1 . EXPLORE 1 | . . . . . 1 . Ally Attacks . | . . . . . . . Total Damage . | . . . . . . . Kills . | . . . . . . . Allies Corrupted . | . . . . . . . Allies Melted . | . . . . . . . Intel | -11 -10 -10 -9 -9 -7 -7 ------- Run | Scr Mat Min Mat Min Zio Dee Robot Analysis Total 5 | . 1 . 4 . . . Derelict Logs Recovered 1 | . . . . . 1 . Drone Launches 1 | . . . . . 1 . Drone Recoveries . | . . . . . . . Exploration | -11 -10 -10 -9 -9 -7 -7 ------------- Run | Scr Mat Min Mat Min Zio Dee Turns Passed 2973 | 82 351 222 1059 69 923 267 Spaces Moved 1860 | 59 329 168 527 38 566 173 Core 64 | 10 . . . . . 54 Treads 1170 | . . . 447 38 566 119 Legs . | . . . . . . . Wheels 626 | 49 329 168 80 . . . Hover . | . . . . . . . Flight . | . . . . . . . Fastest Speed 50 | 50 80 105 86 160 160 50 Average Speed 133 | 74 86 105 148 160 160 125 Slowest Speed 160 | 80 105 105 160 160 160 160 Overloaded Moves . | . . . . . . . Propulsion Burnouts . | . . . . . . . Robots Hopped . | . . . . . . . Cave-ins Triggered . | . . . . . . . Exploration Rate (%) 48 | 3 66 51 68 16 91 46 Regions Visited 6 Branch Regions 4 Pre-discovered Areas 1 | . . . 1 . . . Known Exits Taken . | . . . . . . . Unknown Exits Taken 6 | 1 1 1 1 1 1 . Scrap Searched 3 | . . . . 1 2 . Spaces Dug 3 | . 1 . 2 . . . Terrain Destroyed 11 | . 1 . 10 . . . Melee 1 | . . . 1 . . . Projectile 10 | . 1 . 9 . . . AOE . | . . . . . . . Terrain Rammed . | . . . . . . . Walls Destroyed . | . . . . . . . Machines Disabled . | . . . . . . . Actions | -11 -10 -10 -9 -9 -7 -7 --------- Run | Scr Mat Min Mat Min Zio Dee Total 2160 | 82 364 190 695 42 583 204 Wait 16 | . 2 . 9 . 4 1 Move 1854 | 58 328 167 526 37 565 173 Hop . | . . . . . . . Pick Up 43 | 11 5 7 18 . 2 . Fast Attach 19 | 4 2 . 10 . 3 . Attach 29 | 3 . 1 15 . . 10 Detach 13 | . 1 . 9 . 1 2 Swap 44 | . 4 1 31 2 4 2 Drop 41 | . 6 2 23 1 4 5 Fire 97 | 6 16 12 51 2 . 10 Melee 2 | . . . 1 . . 1 Ram . | . . . . . . . Kick . | . . . . . . . Crush 2 | . . . 2 . . . Escape Stasis . | . . . . . . . Rewire . | . . . . . . . Trap . | . . . . . . . Miscellaneous . | . . . . . . . Route ------- -11/Scrapyard -10/Materials (discovered 2 exits: *Mat / [*Min]) -10/Mines -9/Materials (discovered 3 exits: [*Mat x2] / [*Min]) -9/Mines -7/Zion (discovered 2 exits: [*Dee] / [*Pro]) -7/Deep Caves History --------- Turn | Location | Event 2 | -11/Scrapyard | Met Revision 17 10 | -11/Scrapyard | Discovered new exit (range 15) 83 | -11/Scrapyard | Entered Materials 193 | -10/Materials | Discovered new exit (range 6) 298 | -10/Materials | Central database locked down 308 | -10/Materials | Build established: Mutant 309 | -10/Materials | Discovered new exit (range 10) 434 | -10/Materials | Entered Mines 595 | -10/Mines | Discovered new exit (range 16) 656 | -10/Mines | Entered Materials 656 | -9/Materials | Evolved 2 slots: Propulsion x1, Utility x1 864 | -9/Materials | Discovered new exit (range 8) 966 | -9/Materials | Build established: Scavenger-Mutant 1026 | -9/Materials | Discovered new exit (range 16) 1297 | -9/Materials | Build established: Mutant 1428 | -9/Materials | Discovered new exit (range 8) 1715 | -9/Materials | Entered Mines 1732 | -9/Mines | A Derelict revealed a hidden shortcut to a safe place 1784 | -9/Mines | Entered Zion 1820 | -7/Zion | Given the Hacking Drone Bay 1820 | -7/Zion | Found Prototype Device 1820 | -7/Zion | Identified Hacking Drone Bay 1842 | -7/Zion | Discovered new exit (range 27) 1985 | -7/Zion | Acquired unknown access codes intercepted by a Zionite 2055 | -7/Zion | Learned Factory terminal intel 2093 | -7/Zion | Found Prototype Device 2093 | -7/Zion | Identified Phasing AFG 2401 | -7/Zion | Given A8's code to call for help 2547 | -7/Zion | Imprinted 2550 | -7/Zion | Declared Zion's savior 2675 | -7/Zion | Opened final containment barrier to the Deep Caves 2699 | -7/Zion | Discovered new exit (range 3) 2699 | -7/Zion | Saw the warning signs outside the Deep Caves entrance 2707 | -7/Zion | Entered Deep Caves 2707 | -7/Deep Caves | Accompanied by 4 allies 2890 | -7/Deep Caves | Attacked by Z-Imprinter 2959 | -7/Deep Caves | Z-Facility disabled 2964 | -7/Deep Caves | Core integrity fell below 50% 2970 | -7/Deep Caves | Core integrity fell below 20% 2974 | -7/Deep Caves | Destroyed by B0-J9B(z) with Zionite Laser-S Last Messages --------------- 02921_ Lgt. Treads destroyed. 02923_ Cooling System destroyed. 02925_ Ion Cannon destroyed. 02928_ Imp. Assault Rifle destroyed. 02931_ Discarded Imp. Targeting Computer. 02931_ Dropped Imp. Terrain Scanner. 02932_ Dropped Cld. Ion Engine. 02933_ Dropped Imp. Assault Rifle. 02935_ Dropped Lrg. Storage Unit. 02935_ Lgt. Treads destroyed. 02939_ Adv. Treads destroyed. 02949_ 7T-NHF(o) is busy at the terminal. 02951_ Sneak attack on 7T-NHF(o). 02951_ Destroyed Hover Unit. 02951_ 7T-NHF(o) destroyed. 02953_ Adv. Treads destroyed. 02953_ Katana destroyed. 02954_ Acquired 11 matter. 02959_ Z-Facility disabled. 02963_ Adv. Treads destroyed. Map ----- +----------------------------------------------------+ | | | | | | | | | | | | | | | | | | | | | | | ??????????????????????????#??????????????????????? | | ?????????????????????????? ??????????????????????? | | ?????????????????????????? ??????????????????????? | | ?????????????????????????# ??????????????????????? | | ?????????????????????????# ###?????####??????????? | | ????????????????????????? ######zz # #????????? | | ????????????????????????? # z #???????? | | ????????????????????????? ??????? | | ????????????????????????? ?????? | | ?????????????????????????? ??? | | ?????????????????????????## ?? | | ?????????????????????????# "?? | | ??????????????????????#### "?? | | ?????????????????????## # ""? | | ?????????????????????# @ ""? | | ?????????????????????#!*# ""? | | ?????????????????????##### ""? | | ????????????????????????## ""? | | ????????????????????????# """ | | ????????????????????????## """ | | ?????????????????????????# """ | | ?????????????????????## # "" | | ?????????????????????# "" | | ?????????????????????# "" | | ?????????????????????# "" | | ?????????????????????## "" | | ??????????????????????### "" | | ????????????????????????# "" | | ????????????????????????## z "" | | ?????????????????????????# "" | | ?????????????????????????## "" | | ??????????????????????????# " | | ??????????????????????????# | | ??????????????????????????# | | ????????????????????????? | | ???????????????????????? | | ???????????????????????? | | ???????????????????????? | | ????????????????????????? | +----------------------------------------------------+ Best States ------------- Heat Dissipation 50 Energy Generation 14 Energy Capacity 280 Matter Stores 300 Matter Capacity 300 Sight Range 18 Terrain Scan Range 16 Terrain Scan Density 85 Evasion (%) 50 Targeting Accuracy 6 Recoil Reduction 3 Item Schematics ----------------- Hcp. Storage Unit | -9/Materials | Hacked Robot Schematics ------------------ None Fabricated ------------ Nothing Alien Tech Used ----------------- None Achievements -------------- None Challenges ------------ None Game ------ Seed FrostMiningInterpreter Manual? 0 Play Time 00:36:24 Cumulative 631.5 hours Start 2022.05.17 @ 21:19:37 End 2022.05.17 @ 21:54:28 Sessions 1 Manual Loads 0 Difficulty Rogue Special Mode None Game No. 324 Rogue 197 Adventurer 125 Explorer 2 Win Type - Total 64 Types 55/3/3/1/1/0/0/0/1 Lore% 75 Gallery% 86 Achievement% 71 Wizard Run 0 Options --------- ASCII 0 Keyboard 1 Movement Numpad Keybinds 0 Fullscreen 1 Font 36/TerminusFine Map View 76x50 Tactical HUD 1 Map Filters NONE Filters NONE Steam 1 RUN: 81459094-307d-41bd-a80c-7fa9e05a0357